bitfinex/quotes_ETHUSD_20250930
["timestamp","ask_amount","ask_price","bid_price","bid_amount"]
[1759194452130,0.6915,4215.1,4215.0,17.345]
[1759194452329,0.6915,4215.1,4215.0,19.71747924]
[1759194453419,0.6915,4215.1,4215.0,17.345]
[1759194454604,0.6915,4215.1,4215.0,0.002]
[1759194454605,6.06392295,4215.1,4215.0,0.002]
[1759194454836,6.06392295,4215.1,4215.0,2.843]
[1759194455032,3.6915,4215.1,4215.0,2.843]
[1759194456239,3.001,4215.1,4215.0,2.843]
[1759194456440,3.001,4215.1,4215.0,0.002]
[1759194456441,3.6915,4215.1,4215.0,0.002]
[1759194456741,3.001,4215.1,4215.0,0.002]
[1759194457039,3.001,4215.1,4215.0,2.843]
[1759194458036,0.001,4215.1,4215.0,5.21547924]
[1759194458239,0.001,4215.1,4215.0,5.45727924]
[1759194458439,0.001,4215.1,4215.0,5.91937924]
[1759194463515,0.001,4215.1,4215.0,5.91737924]
[1759194464951,0.001,4215.1,4215.0,3.07837924]
[1759194465159,0.001,4215.1,4215.0,5.91637924]
[1759194466360,0.001,4215.1,4215.0,6.03477924]
[1759194467160,0.001,4215.1,4215.0,5.33087924]
[1759194467326,0.001,4215.1,4215.0,2.49287924]
[1759194467531,0.001,4215.1,4215.0,5.32987924]
[1759194468062,0.001,4215.1,4215.0,2.49287924]
[1759194468261,0.001,4215.1,4215.0,5.32987924]
[1759194469263,0.6794,4215.1,4215.0,0.1204]
[1759194469468,0.2463,4215.1,4215.0,2.839]
[1759194469632,0.2463,4215.1,4215.0,5.21147924]
[1759194470160,0.001,4215.1,4215.0,5.21147924]
[1759194470331,0.2463,4215.1,4215.0,5.21147924]
[1759194471562,0.001,4215.1,4215.0,6.01057924]
[1759194472661,0.001,4215.1,4215.0,2.49287924]
[1759194472850,0.2463,4215.1,4215.0,2.9564]
[1759194473245,0.6794,4215.1,4215.0,0.1204]
[1759194473448,0.6794,4215.1,4215.0,2.9564]
[1759194474767,0.6794,4215.1,4215.0,0.002]
[1759194474969,3.6794,4215.1,4215.0,0.002]
[1759194475267,6.05182295,4215.1,4215.0,0.63]
[1759194475768,12.70619481,4215.1,4215.0,0.002]
[1759194475961,7.14273587,4215.1,4215.0,0.002]
[1759194478136,13.00510773,4215.1,4215.0,0.002]
[1759194478375,25.05813694,4215.1,4215.0,0.002]
[1759194478784,6.1647044,4214.6,4214.5,0.002]
[1759194479294,6.8431044,4214.6,4214.5,0.002]
[1759194482194,6.0511044,4214.6,4214.5,0.002]
[1759194483165,6.8431044,4214.6,4214.5,0.002]
[1759194483365,7.14201732,4214.6,4214.5,0.002]
[1759194484982,6.8431044,4214.6,4214.5,0.002]
[1759194489221,6.4100044,4214.6,4214.5,0.002]
[1759194489401,5.3727044,4214.6,4214.5,0.002]
[1759194489572,6.8493044,4214.6,4214.5,0.002]
[1759194489770,6.4005044,4214.6,4214.5,0.002]
[1759194490314,6.1647044,4214.6,4214.5,0.002]
[1759194490905,6.4005044,4214.6,4214.5,0.002]
[1759194491107,3.0,4214.6,4214.5,0.002]
[1759194491612,5.3727044,4214.6,4214.5,0.002]
[1759194491969,3.0,4214.6,4214.5,0.002]
[1759194492204,3.0,4214.6,4214.5,0.2511]
[1759194492706,3.0,4214.6,4214.5,0.711]
[1759194492918,3.1184,4214.6,4214.5,3.542]
[1759194493980,3.1184,4214.6,4214.5,3.0821]
[1759194494659,0.001,4215.1,4214.5,3.067]
[1759194494840,2.37347752,4215.1,4214.5,3.5054]
[1759194495149,0.001,4215.1,4214.5,3.2714]
[1759194495349,0.001,4215.1,4214.6,0.234]
[1759194495524,2.37253272,4215.0,4214.6,14.734]
[1759194495720,0.001,4215.1,4214.7,0.6724]
[1759194495936,0.001,4215.1,4214.7,0.4384]
[1759194496137,0.001,4215.1,4214.8,0.6724]
[1759194496512,0.001,4215.1,4214.9,0.6724]
[1759194496747,0.001,4215.1,4215.0,2.39620403]
[1759194496960,0.001,4215.1,4215.0,3.04487924]
[1759194497629,0.001,4215.1,4215.0,20.37487924]
[1759194499814,0.001,4215.1,4215.0,21.16687924]
[1759194501527,0.001,4215.1,4215.0,24.16687924]
[1759194501761,0.001,4217.1,4216.4,2.37169149]
[1759194501935,0.001,4217.1,4216.4,5.2234084]
[1759194502255,0.001,4217.1,4216.4,5.87209149]
[1759194502461,0.001,4217.1,4216.4,20.37209149]
[1759194502660,0.001,4217.1,4216.4,17.54409149]
[1759194502872,0.001,4217.1,4216.4,20.37209149]
[1759194503225,0.001,4217.1,4216.4,17.54409149]
[1759194503436,0.001,4217.1,4216.4,20.37209149]
[1759194504871,0.001,4217.1,4216.4,20.49049149]
[1759194509180,1e-08,4217.0,4216.9,2.37141027]
[1759194509348,1e-08,4217.0,4216.9,5.19641027]
[1759194509548,1e-08,4217.0,4216.9,5.98721027]
[1759194509747,1e-08,4217.0,4216.9,20.48721027]
[1759194511374,1e-08,4217.0,4216.9,20.48621027]
[1759194514263,1e-08,4217.0,4216.9,21.27821027]
[1759194514545,1e-08,4217.6,4217.5,3.16307291]
[1759194514773,1e-08,4217.6,4217.5,8.98607291]
[1759194514984,1e-08,4217.6,4217.5,6.95387291]
[1759194515169,1e-08,4217.6,4217.5,25.76487291]
[1759194519044,1e-08,4217.6,4217.5,26.55687291]
[1759194521271,1e-08,4217.6,4217.5,27.03954148]
[1759194521674,1e-08,4217.6,4217.5,21.93654148]
[1759194521876,1e-08,4217.6,4217.5,27.03654148]
[1759194522080,0.2265,4219.9,4219.2,2.37011755]
[1759194522249,0.2265,4219.5,4219.2,5.19011755]
[1759194522445,0.4677,4219.6,4219.2,5.19011755]
[1759194522643,0.22650001,4219.3,4219.2,17.32]
[1759194522872,0.69420001,4219.3,4219.2,17.32]
[1759194523066,0.69420001,4219.3,4219.2,19.69011755]
[1759194523350,0.69420001,4219.3,4219.2,17.32]
[1759194523575,0.69420001,4219.3,4219.2,19.69011755]
[1759194523770,0.69420001,4219.3,4219.2,14.5]
[1759194524056,0.69420001,4219.3,4219.2,17.32]
[1759194524653,0.69420001,4219.3,4219.2,17.319]
[1759194524883,0.69420001,4219.3,4219.2,19.68911755]
[1759194525078,0.22650001,4219.3,4219.2,19.68911755]
[1759194525267,0.69420001,4219.3,4219.2,17.319]
[1759194525986,0.69420001,4219.3,4219.2,19.68911755]
[1759194527850,0.69420001,4219.3,4219.2,17.319]
[1759194528394,0.22650001,4219.3,4219.2,19.68911755]
[1759194528594,0.69420001,4219.3,4219.2,19.68911755]
[1759194529505,1e-08,4219.3,4219.2,19.68911755]
[1759194529685,1e-08,4219.3,4219.2,17.319]
[1759194530001,0.69420001,4219.3,4219.2,17.318]
[1759194530495,0.69420001,4219.3,4219.2,19.68811755]
[1759194531968,0.69420001,4219.3,4219.2,17.4364]
[1759194532371,0.69420001,4219.3,4219.2,14.6184]
[1759194532604,0.69420001,4219.3,4219.2,14.5]
[1759194532788,0.69420001,4219.3,4219.2,17.317]
[1759194533605,1e-08,4219.3,4219.2,19.68711755]
[1759194533907,1e-08,4219.3,4219.2,20.49041755]
[1759194535299,0.22650001,4219.3,4219.2,19.80551755]
[1759194535873,1e-08,4219.3,4219.2,19.80551755]
[1759194538278,0.22650001,4219.3,4219.2,19.80551755]
[1759194538477,0.69301501,4219.3,4219.2,19.80551755]
[1759194539336,0.4677,4219.7,4219.6,2.36989288]
[1759194539512,0.4677,4219.7,4219.6,2.815]
[1759194539890,0.4677,4219.7,4219.3,2.37004679]
[1759194540097,0.4677,4219.6,4219.4,2.815]
[1759194540395,0.4677,4219.5,4219.4,5.18500521]
[1759194540598,0.6942,4219.5,4219.4,5.18500521]
[1759194540780,0.1184,4220.0,4219.4,2.815]
[1759194540988,0.2265,4219.9,4219.7,2.3697819]
[1759194541306,0.1184,4220.0,4219.8,2.815]
[1759194541506,0.5861,4220.0,4219.8,2.815]
[1759194541678,0.6942,4219.9,4219.8,2.815]
[1759194541881,3.0,4220.2,4219.8,2.815]
[1759194541882,0.1184,4220.1,4219.8,2.815]
[1759194542100,0.6942,4220.0,4219.8,5.18477151]
[1759194542408,0.1184,4220.1,4219.8,5.18477151]
[1759194542409,0.1184,4220.1,4220.0,2.36966824]
[1759194542577,0.3449,4220.1,4220.0,5.18366824]
[1759194543015,0.2265,4220.5,4220.3,2.36946692]
[1759194543225,0.2265,4220.5,4220.4,17.314]
[1759194543226,0.1184,4220.5,4220.4,17.314]
[1759194543811,0.8126,4220.5,4220.4,17.314]
[1759194544329,0.3449,4220.5,4220.4,17.314]
[1759194544722,0.8126,4220.5,4220.4,17.314]
[1759194547116,0.1184,4220.5,4220.4,17.314]
[1759194547542,0.3449,4220.5,4220.4,17.314]
[1759194547837,0.1184,4220.5,4220.4,17.314]
[1759194548206,0.3449,4220.5,4220.4,17.314]
[1759194548538,0.1184,4220.5,4220.4,17.314]
[1759194548823,0.8126,4220.5,4220.4,17.314]
[1759194549029,0.1184,4220.5,4220.4,17.314]
[1759194549626,0.7877,4220.5,4220.4,17.314]
[1759194550721,0.355,4220.5,4220.4,17.314]
[1759194551450,0.1184,4220.5,4220.4,17.314]
[1759194552228,0.355,4220.5,4220.4,17.314]
[1759194552431,0.7877,4220.5,4220.4,17.314]
[1759194552853,0.1184,4220.5,4220.4,17.314]
[1759194553264,2.36944365,4220.4,4219.2,0.2425]
[1759194553445,6.88702345,4220.0,4219.4,0.1184]
[1759194553741,3.0,4219.9,4219.5,19.68090682]
[1759194554051,3.2366,4219.9,4219.5,17.311]
[1759194554223,0.2366,4219.8,4219.5,14.5]
[1759194554538,0.1184,4219.6,4219.5,14.5]
[1759194554740,0.1184,4219.6,4219.5,17.311]
[1759194555512,0.1184,4219.6,4219.5,17.5587]
[1759194555708,0.3535,4219.6,4219.5,17.311]
[1759194556010,0.1184,4219.6,4219.5,19.67994904]
[1759194556338,0.1184,4219.6,4219.5,17.31]
[1759194556540,2.36941703,4220.5,4219.5,17.31]
[1759194556541,0.2351,4220.4,4219.5,18.0308]
[1759194556844,0.1184,4220.3,4220.0,2.36966676]
[1759194557044,0.1184,4220.3,4220.1,2.81]
[1759194557352,0.6788,4220.2,4220.1,2.81]
[1759194557512,0.2351,4220.2,4220.1,2.81]
[1759194557851,0.1184,4220.3,4220.1,2.81]
[1759194558337,0.3535,4220.3,4220.1,2.81]
[1759194559245,0.1184,4220.3,4220.1,2.81]
[1759194559438,0.1184,4220.3,4220.2,3.09035594]
[1759194559768,0.1184,4220.3,4220.2,0.7208]
[1759194559968,0.1184,4220.3,4220.2,15.2208]
[1759194560146,0.1184,4220.3,4220.2,14.5]
[1759194561375,0.1184,4220.3,4220.2,16.86955594]
[1759194561542,0.1184,4220.3,4220.2,14.5]
[1759194561740,0.001,4220.5,4220.4,2.36944365]
[1759194562082,0.001,4220.5,4220.4,5.17844365]
[1759194562247,0.001,4220.5,4220.4,5.89924365]
[1759194562448,0.001,4220.5,4220.4,18.0298]
[1759194562851,0.001,4220.5,4220.4,19.92614365]
[1759194563539,0.001,4220.5,4220.4,14.5]
[1759194563746,0.2361,4220.5,4220.4,14.5]
[1759194563956,0.2361,4220.5,4219.5,0.4731]
[1759194564287,0.6798,4220.5,4219.8,2.36975885]
[1759194564484,7.12212345,4220.4,4219.9,17.308]
[1759194564773,3.6788,4220.3,4219.9,17.308]
[1759194565271,0.2351,4220.2,4219.9,19.6777244]
[1759194565469,3.0,4220.3,4219.9,19.6777244]
[1759194565686,3.0,4220.3,4219.9,17.308]
[1759194566073,3.001,4220.5,4219.9,17.308]
[1759194566267,3.001,4220.5,4220.0,2.39332903]
[1759194566466,3.001,4220.5,4220.1,2.808]
[1759194566688,3.2361,4220.5,4220.1,2.808]
[1759194567305,0.6788,4220.4,4220.1,2.808]
[1759194567593,0.2351,4220.3,4220.1,2.808]
[1759194568305,3.001,4220.5,4220.1,2.808]
[1759194568592,0.001,4220.5,4220.2,2.36951488]
[1759194568890,0.001,4220.5,4220.3,2.807]
[1759194569090,6.88802345,4220.5,4220.3,2.807]
[1759194569425,0.2351,4220.4,4219.9,2.36971107]
[1759194569598,0.6788,4220.3,4220.0,2.806]
[1759194569799,0.2351,4220.3,4220.0,17.306]
[1759194570690,9.25741397,4220.5,4220.0,17.306]
[1759194570894,0.2351,4220.4,4220.0,17.306]
[1759194571896,0.1184,4220.1,4220.0,17.306]
[1759194572397,0.2351,4220.4,4220.0,17.306]
[1759194572398,0.1184,4220.4,4220.3,2.36948732]
[1759194572574,0.1184,4220.4,4220.3,5.17548732]
[1759194572773,0.1184,4220.4,4220.3,5.89628732]
[1759194572958,0.1184,4220.4,4220.3,2.806]
[1759194573181,3.1184,4220.4,4220.3,2.806]
[1759194573502,6.88802345,4220.5,4220.3,2.806]
[1759194573503,0.001,4220.5,4220.4,2.36944365]
[1759194573817,0.001,4220.5,4220.4,0.8392]
[1759194573983,0.001,4220.5,4220.4,3.20864365]
[1759194574186,0.001,4220.5,4220.4,17.70864365]
[1759194574914,0.001,4221.4,4221.2,2.36899459]
[1759194575124,0.2351,4223.4,4221.9,2.36860181]
[1759194575282,0.2351,4223.4,4221.9,5.89440181]
[1759194575483,0.12396245,4225.7,4221.9,18.0258]
[1759194575685,7.33072345,4224.6,4222.1,2.36848961]
[1759194575888,0.2351,4224.5,4223.3,2.36781215]
[1759194576215,7.33072345,4224.6,4223.4,2.805]
[1759194576216,3.0,4224.1,4223.4,2.805]
[1759194576523,3.0,4224.1,4223.5,19.67268078]
[1759194576700,3.0,4224.1,4223.6,2.805]
[1759194577391,0.2351,4224.4,4223.7,2.804]
[1759194577392,9.88702345,4223.8,4223.7,2.804]
[1759194577592,0.792,4223.6,4223.5,14.5]
[1759194577897,1.4708,4223.6,4223.5,2.804]
[1759194578213,3.792,4223.6,4223.5,2.804]
[1759194578380,10.91412345,4223.6,4223.5,2.804]
[1759194578581,2.3678727,4223.2,4222.8,14.5]
[1759194578780,3.0,4223.0,4222.9,2.804]
[1759194580020,3.0,4223.0,4222.8,14.5]
[1759194580228,3.0,4223.0,4222.9,2.804]
[1759194580408,0.792,4223.4,4222.9,2.804]
[1759194580607,0.2451,4223.6,4222.9,2.804]
[1759194580810,0.792,4223.7,4222.9,2.804]
[1759194581326,3.0,4223.3,4223.0,2.803]
[1759194581527,3.0,4223.1,4223.0,2.803]
[1759194581737,5.36776183,4223.4,4223.0,2.803]
[1759194581899,2.36783905,4223.3,4223.0,2.803]
[1759194582227,2.36776083,4223.4,4223.1,2.803]
[1759194582535,3.2451,4223.4,4223.1,2.803]
[1759194582738,2.6129095,4223.4,4223.1,2.803]
[1759194582889,0.2451,4223.4,4223.1,2.803]
[1759194583095,7.13212345,4223.4,4223.1,2.803]
[1759194583422,3.0,4223.7,4223.2,0.7134]
[1759194583605,3.0,4223.7,4223.3,3.0427]
[1759194584528,2.61280224,4223.6,4223.3,2.803]
[1759194584702,3.0,4223.7,4223.3,2.803]
[1759194584703,9.88702345,4223.4,4223.3,2.803]
[1759194584907,10.00462345,4223.4,4223.3,2.803]
[1759194585211,10.00462345,4223.4,4222.8,14.5]
[1759194585212,3.0,4223.3,4222.8,14.5]
[1759194585412,0.1184,4222.9,4222.8,14.5]
[1759194585722,0.1184,4222.9,4222.8,2.802]
[1759194586793,2.48644091,4222.9,4222.8,2.802]
[1759194586994,5.73154091,4222.9,4222.8,2.802]
[1759194587195,6.16814091,4222.9,4222.8,2.802]
[1759194587410,2.36815512,4222.7,4222.3,14.5]
[1759194587611,2.36815512,4222.7,4222.4,2.802]
[1759194587830,3.0,4222.8,4222.4,2.802]
[1759194588002,2.36816577,4222.7,4222.4,2.802]
[1759194588218,2.36816577,4222.7,4221.7,0.7134]
[1759194588219,0.1184,4222.4,4221.7,0.2397]
[1759194588429,0.1184,4222.4,4221.4,0.1184]
[1759194588721,0.1184,4222.4,4221.5,17.301]
[1759194588722,0.1184,4221.9,4221.5,17.301]
[1759194588942,0.1184,4221.9,4221.5,17.5407]
[1759194589241,0.1184,4221.9,4221.5,18.0144]
[1759194591706,0.1184,4221.9,4221.6,0.4737]
[1759194591911,0.1184,4221.9,4221.5,17.5407]
[1759194592239,0.1184,4221.9,4221.6,2.801]
[1759194592945,2.36857321,4222.0,4221.5,14.5]
[1759194593124,3.0,4221.8,4221.6,2.801]
[1759194593324,2.36871402,4221.7,4221.6,2.801]
[1759194593923,2.36882624,4221.5,4220.7,0.2397]
[1759194594135,2.36882624,4221.5,4220.8,2.801]
[1759194594136,2.3688333,4221.5,4220.8,2.801]
[1759194594459,0.1184,4221.2,4221.1,14.5]
[1759194594820,2.48739459,4221.2,4221.1,17.301]
[1759194595220,0.1184,4221.2,4221.1,17.301]
[1759194595615,2.73249459,4221.2,4221.1,17.301]
[1759194595858,5.73249459,4221.2,4221.1,17.301]
[1759194596054,5.73249459,4221.2,4221.1,17.3]
[1759194596255,6.52449459,4221.2,4221.1,2.8]
[1759194596572,6.96109459,4221.2,4221.1,2.8]
[1759194598979,6.16105072,4221.1,4221.0,0.002]
[1759194599180,6.16105072,4221.1,4221.0,2.802]
[1759194599364,6.84275072,4221.1,4221.0,2.802]
[1759194599594,6.84275072,4221.1,4221.0,0.002]
[1759194599792,6.84275072,4221.1,4221.0,2.802]
[1759194600188,24.68939966,4221.1,4221.0,0.002]
[1759194604499,24.68939966,4221.1,4220.6,0.002]
[1759194604820,6.16127523,4220.7,4220.6,0.002]
[1759194605240,6.84297523,4220.7,4220.6,0.002]
[1759194605934,9.64197523,4220.7,4220.6,0.002]
[1759194606324,0.792,4219.4,4219.3,0.002]
[1759194606523,12.01567787,4219.4,4219.3,0.002]
[1759194608201,12.26077787,4219.4,4219.3,0.002]
[1759194608409,9.64567266,4219.4,4219.3,0.002]
[1759194608809,12.01567787,4219.4,4219.3,0.002]
[1759194610207,12.01567787,4219.4,4219.3,0.6958]
[1759194610764,12.01567787,4219.4,4219.3,0.2285]
[1759194611042,12.01567787,4219.4,4219.3,0.002]
[1759194611258,9.64567266,4219.4,4219.3,0.002]
[1759194611549,3.0,4219.7,4219.3,0.6958]
[1759194611752,3.0,4219.7,4219.3,0.002]
[1759194612057,8.85367266,4219.5,4219.4,0.6938]
[1759194613241,3.0,4219.5,4219.4,0.6938]
[1759194613417,0.1184,4219.8,4219.4,0.6938]
[1759194613607,0.1184,4219.8,4219.6,2.36986463]
[1759194613806,0.1184,4219.8,4219.7,3.06363671]
[1759194614011,0.1184,4219.8,4219.7,17.58733507]
[1759194614243,0.1184,4220.2,4219.7,15.1938]
[1759194614411,0.1184,4220.5,4220.2,2.36950279]
[1759194614635,0.1184,4220.5,4220.3,3.4625]
[1759194615166,0.1184,4220.5,4220.4,0.6645]
[1759194615167,3.1184,4220.5,4220.4,0.6645]
[1759194616333,0.1184,4220.5,4220.4,0.6645]
[1759194616668,0.1184,4220.5,4220.4,0.2277]
[1759194616869,0.1184,4220.5,4220.3,2.798]
[1759194617035,0.1184,4220.5,4220.3,3.0257]
[1759194617232,0.1184,4220.5,4220.3,0.2277]
[1759194617456,2.48778751,4220.5,4220.4,2.798]
[1759194617657,2.36959632,4220.2,4219.6,0.4368]
[1759194617856,2.48779319,4220.5,4219.7,17.298]
[1759194617857,2.48812547,4219.9,4219.7,17.298]
[1759194618055,0.1184,4219.9,4219.7,17.298]
[1759194618365,0.1184,4219.9,4219.8,0.6645]
[1759194620265,0.1184,4219.9,4219.8,0.2277]
[1759194620674,0.1184,4219.9,4219.8,0.6645]
[1759194621751,0.1184,4219.9,4219.8,15.1645]
[1759194622162,0.1184,4219.9,4219.8,14.7277]
[1759194623238,0.1184,4219.9,4219.8,17.5247]
[1759194623442,0.1184,4219.9,4219.8,17.9615]
[1759194623947,0.1184,4219.9,4219.8,20.33128055]
[1759194624153,3.0,4220.8,4219.9,2.36968678]
[1759194624154,0.1184,4220.3,4219.9,2.36968678]
[1759194624468,0.1184,4220.3,4220.0,0.6645]
[1759194624676,0.1184,4220.3,4220.1,2.797]
[1759194624856,0.1184,4220.3,4220.1,3.4615]
[1759194625062,0.1184,4220.3,4220.1,2.797]
[1759194625265,0.1184,4220.3,4220.2,0.6645]
[1759194626079,0.1184,4220.3,4220.2,2.796]
[1759194626374,2.48789979,4220.3,4220.2,2.796]
[1759194626867,5.72789979,4220.3,4220.2,2.796]
[1759194627176,3.1184,4220.3,4220.2,2.796]
[1759194627477,5.48789979,4220.3,4220.2,2.796]
[1759194627671,5.48789979,4220.3,4220.2,17.296]
[1759194627876,5.48789979,4220.3,4220.2,2.796]
[1759194628458,5.72789979,4220.3,4220.2,2.796]
[1759194629277,3.1184,4220.3,4220.2,2.796]
[1759194629578,3.1184,4220.3,4220.2,3.4605]
[1759194632379,3.0,4220.3,4220.2,5.83005594]
[1759194632553,3.0,4220.3,4220.2,2.796]
[1759194635148,3.0,4220.3,4220.2,3.4605]
[1759194635547,0.001,4220.6,4220.5,2.36938751]
[1759194635764,0.001,4220.6,4220.5,5.18708138]
[1759194635963,0.001,4220.6,4220.5,5.94628751]
[1759194638867,0.001,4220.6,4220.5,6.73828751]
[1759194639276,0.001,4220.6,4220.5,6.83327355]
[1759194639478,0.001,4220.6,4220.5,9.83327355]
[1759194639697,0.001,4220.6,4220.5,10.12792477]
[1759194640476,0.001,4222.5,4220.5,10.12792477]
[1759194640477,0.001,4222.5,4221.4,3.16088236]
[1759194640779,0.001,4222.5,4221.4,8.23188236]
[1759194640976,0.001,4222.5,4221.4,9.01118236]
[1759194642883,0.001,4222.5,4221.4,8.21918236]
[1759194643096,0.001,4222.5,4221.4,3.14818236]
[1759194643303,0.001,4222.5,4221.4,5.94018236]
[1759194645225,0.001,4222.5,4221.4,3.14818236]
[1759194645430,0.2346,4222.4,4221.4,5.93918236]
[1759194646220,0.2356,4222.5,4221.4,3.14818236]
[1759194646395,0.2356,4222.5,4221.4,5.93918236]
[1759194647182,0.2356,4222.5,4219.8,0.002]
[1759194647183,0.2356,4221.5,4219.8,0.002]
[1759194647382,2.36919962,4220.9,4219.8,0.002]
[1759194647581,3.78753794,4220.8,4219.9,2.791]
[1759194647811,3.6914,4220.7,4220.0,2.791]
[1759194648121,0.2346,4220.7,4220.1,0.02369612]
[1759194648297,0.2346,4220.7,4220.2,2.791]
[1759194648499,0.2346,4220.6,4220.3,0.02369499]
[1759194648815,0.2346,4220.6,4219.8,2.37177521]
[1759194648816,0.2346,4220.6,4220.4,2.791]
[1759194648999,3.2346,4220.6,4220.4,2.791]
[1759194649602,0.2346,4220.6,4220.4,2.791]
[1759194650629,0.001,4220.7,4220.5,0.02369387]
[1759194650916,0.001,4220.7,4220.4,2.791]
[1759194651110,0.2356,4220.7,4220.4,2.791]
[1759194652807,0.001,4220.7,4220.4,2.791]
[1759194652997,0.2346,4220.6,4220.4,2.791]
[1759194653198,0.001,4220.7,4220.4,2.791]
[1759194653392,0.2356,4220.7,4220.4,2.791]
[1759194653995,0.001,4220.7,4220.4,2.791]
[1759194655122,0.001,4220.7,4220.5,2.39308138]
[1759194655286,0.001,4220.7,4220.5,2.59678751]
[1759194655854,0.001,4220.7,4220.5,2.36938751]
[1759194656220,0.001,4220.7,4220.5,3.03028751]
[1759194656421,0.001,4220.7,4220.4,2.791]
[1759194657023,0.001,4220.7,4220.4,5.16044052]
[1759194657197,0.001,4220.7,4220.6,0.1184]
[1759194657732,0.4578,4220.7,4220.6,0.1184]
[1759194657900,0.001,4220.7,4220.6,0.1184]
[1759194658624,0.001,4220.7,4220.1,0.002]
[1759194658625,2.6049217,4220.7,4220.1,0.002]
[1759194658828,2.36939015,4220.5,4220.2,2.667]
[1759194659006,0.6914,4220.4,4220.2,2.667]
[1759194659401,0.6914,4220.3,4220.2,2.667]
[1759194661321,3.06089979,4220.3,4220.2,2.667]
[1759194662146,0.2346,4220.3,4220.2,2.667]
[1759194662322,0.57401919,4220.7,4220.2,2.667]
[1759194662323,3.2356,4220.7,4220.2,2.667]
[1759194662512,0.6914,4220.6,4220.2,2.667]
[1759194662711,3.2346,4220.5,4220.2,2.667]
[1759194662913,0.2346,4220.4,4220.2,2.667]
[1759194663313,5.36934648,4220.6,4220.2,2.667]
[1759194663521,3.0,4220.4,4220.2,2.667]
[1759194663717,0.001,4220.7,4220.3,2.59689841]
[1759194663945,0.001,4220.7,4220.4,2.3694015]
[1759194664245,0.001,4220.7,4220.2,2.667]
[1759194664246,0.2356,4220.7,4220.2,2.667]
[1759194664451,0.2356,4220.7,4220.2,5.03654962]
[1759194664652,0.001,4220.7,4220.3,2.36949451]
[1759194664848,0.001,4220.7,4220.4,2.36941645]
[1759194665057,0.2346,4220.6,4220.3,2.36949185]
[1759194665273,0.001,4220.7,4220.2,2.667]
[1759194665565,0.001,4220.7,4220.3,2.59684681]
[1759194665759,0.001,4220.7,4220.4,2.36943346]
[1759194665919,0.001,4220.7,4220.3,0.2274]
[1759194666118,0.001,4220.7,4220.5,16.86938751]
[1759194666363,0.001,4220.7,4220.6,2.81269331]
[1759194666663,0.001,4220.7,4220.6,5.84292468]
[1759194666958,0.001,4220.7,4220.6,20.31923137]
[1759194667319,0.001,4220.7,4220.6,19.88573137]
[1759194667956,0.001,4220.7,4220.6,19.65833137]
[1759194669747,0.001,4220.7,4220.6,20.33023137]
[1759194670459,0.001,4220.7,4220.6,20.44863137]
[1759194671951,0.001,4220.7,4220.6,19.77673137]
[1759194672668,0.001,4220.7,4220.6,20.44863137]
[1759194684497,0.001,4221.5,4221.4,2.36888236]
[1759194684498,1e-08,4221.5,4221.4,2.36888236]
[1759194684651,1e-08,4221.5,4221.4,5.15388236]
[1759194684851,1e-08,4221.5,4221.4,5.98718236]
[1759194685058,1e-08,4221.5,4221.4,20.48718236]
[1759194685653,1e-08,4221.5,4221.4,19.77228236]
[1759194686393,1e-08,4221.5,4221.4,20.48718236]
[1759194687782,1e-08,4221.5,4221.4,19.77228236]
[1759194690177,1e-08,4221.5,4221.4,20.23670819]
[1759194692592,1e-08,4221.5,4221.4,20.95160819]
[1759194695935,1e-08,4221.5,4221.4,21.74360819]
[1759194696293,1e-08,4221.5,4221.4,24.98300819]
[1759194697526,1e-08,4221.5,4221.4,25.10354371]
[1759194700227,0.001,4222.0,4221.9,3.16060181]
[1759194700432,0.001,4222.0,4221.9,5.94260181]
[1759194700632,0.001,4222.0,4221.9,6.75140181]
[1759194700833,0.001,4222.0,4221.9,21.25140181]
[1759194701130,0.001,4222.0,4221.9,23.41000181]
[1759194701925,0.001,4222.0,4221.9,23.41000181]
[1759194702934,0.001,4222.0,4221.9,26.41000181]
[1759194706314,0.001,4222.5,4222.4,3.16032133]
[1759194706514,0.001,4222.5,4222.4,9.63172133]
[1759194707141,0.001,4222.5,4222.4,24.58722133]
[1759194709850,0.001,4222.5,4222.4,27.08522133]
[1759194710035,0.4555,4223.9,4223.6,0.792]
[1759194710234,0.4555,4223.9,4223.7,5.14759239]
[1759194710437,2.36678483,4225.2,4224.4,2.36715716]
[1759194710626,2.36678483,4225.2,4224.5,17.28]
[1759194710825,2.36670384,4225.3,4224.5,19.64714141]
[1759194711022,3.4555,4225.2,4224.7,0.1176]
[1759194711347,0.4555,4225.2,4224.8,2.78]
[1759194711553,0.4555,4225.1,4224.8,2.78]
[1759194711749,0.4555,4225.0,4224.8,2.78]
[1759194712049,0.632,4224.9,4224.8,2.78]
[1759194712251,3.632,4224.9,4224.8,2.78]
[1759194715643,5.99891992,4224.9,4224.8,2.78]
[1759194715817,5.99891992,4224.9,4224.5,14.5]
[1759194716021,2.3671893,4224.5,4223.6,2.36759867]
[1759194716220,5.83649298,4224.1,4223.7,2.779]
[1759194716439,0.632,4224.0,4223.7,2.779]
[1759194716621,0.632,4223.9,4223.7,2.779]
[1759194717052,5.83649298,4224.1,4223.8,14.5]